fUST/lending_fUST_20250830
["ID","MTS","AMOUNT","RATE_DAILY","PERIOD"]
[382200385,1756542652669,-480.0,0.00020712,2]
[382200386,1756542652678,-480.0,0.00020712,2]
[382200387,1756542652687,-480.0,0.00020712,2]
[382200388,1756542652696,-524.76141877,0.00020712,2]
[382200389,1756542652705,-480.0,0.00020712,2]
[382200390,1756542652715,-480.0,0.00020712,2]
[382200391,1756542652725,-1000.0,0.00020712,2]
[382200392,1756542652734,-480.0,0.00020712,2]
[382200393,1756542652744,-480.0,0.00020712,2]
[382200394,1756542652753,-480.0,0.00020712,2]
[382200395,1756542652762,-480.0,0.00020712,2]
[382200396,1756542652771,-392.33836996,0.00020712,2]
[382200397,1756542652780,-480.0,0.00020712,2]
[382200398,1756542652790,-480.0,0.00020712,2]
[382200399,1756542652800,-1074.78,0.00020712,2]
[382200400,1756542652810,-480.0,0.00020712,2]
[382200401,1756542652819,-480.0,0.00020712,2]
[382200402,1756542652829,-480.0,0.00020712,2]
[382200403,1756542652839,-480.0,0.00020712,2]
[382200404,1756542652848,-480.0,0.00020712,2]
[382200405,1756542652857,-937.44,0.00020712,2]
[382200406,1756542652867,-748.54,0.00020712,2]
[382200407,1756542652876,-480.0,0.00020712,2]
[382200408,1756542652886,-229.4621104,0.00020712,2]
[382200409,1756542652895,-917.59,0.00020712,2]
[382200410,1756542652904,-480.0,0.00020712,2]
[382200411,1756542652913,-480.0,0.00020712,2]
[382200412,1756542652922,-480.0,0.00020712,2]
[382200413,1756542652931,-952.34,0.00020712,2]
[382200414,1756542652941,-480.0,0.00020712,2]
[382200415,1756542652950,-1558.76,0.00020712,2]
[382200416,1756542652959,-480.0,0.00020712,2]
[382200417,1756542652968,-480.0,0.00020712,2]
[382200418,1756542652977,-1036.61,0.00020712,2]
[382200419,1756542652986,-480.0,0.00020712,2]
[382200420,1756542652995,-517.45,0.00020712,2]
[382200421,1756542653009,-480.0,0.00020712,2]
[382200422,1756542653019,-615.09,0.00020712,2]
[382200423,1756542653027,-175.00450516,0.00020712,2]
[382200424,1756542653036,-480.0,0.00020712,2]
[382200425,1756542653047,-480.0,0.00020712,2]
[382200426,1756542653056,-480.0,0.00020712,2]
[382200427,1756542653065,-480.0,0.00020712,2]
[382200428,1756542653076,-480.0,0.00020712,2]
[382200429,1756542653086,-480.0,0.00020712,2]
[382200430,1756542653095,-480.0,0.00020712,2]
[382200431,1756542653105,-1272.72,0.00020712,2]
[382200432,1756542653114,-480.0,0.00020712,2]
[382200433,1756542653123,-480.0,0.00020712,2]
[382200434,1756542653133,-1066.03,0.00020712,2]
[382200435,1756542653142,-480.0,0.00020712,2]
[382200436,1756542653151,-529.85,0.00020712,2]
[382200437,1756542653162,-480.0,0.00020712,2]
[382200438,1756542653171,-480.0,0.00020712,2]
[382200439,1756542653180,-480.0,0.00020712,2]
[382200440,1756542653190,-913.65,0.00020712,2]
[382200441,1756542653199,-480.0,0.00020712,2]
[382200442,1756542653208,-480.0,0.00020712,2]
[382200443,1756542653218,-483.97603794,0.00020712,2]
[382200444,1756542653228,-480.0,0.00020712,2]
[382200445,1756542653238,-480.0,0.00020712,2]
[382200446,1756542653247,-480.0,0.00020712,2]
[382200447,1756542653256,-758.9,0.00020712,2]
[382200448,1756542653266,-480.25,0.00020712,2]
[382200449,1756542653276,-480.0,0.00020712,2]
[382200450,1756542653285,-480.0,0.00020712,2]
[382200451,1756542653294,-480.0,0.00020712,2]
[382200452,1756542653303,-480.0,0.00020712,2]
[382200453,1756542653313,-480.0,0.00020712,2]
[382200454,1756542653322,-480.0,0.00020712,2]
[382200455,1756542653332,-480.0,0.00020712,2]
[382200456,1756542653341,-480.0,0.00020712,2]
[382200457,1756542653351,-480.0,0.00020712,2]
[382200458,1756542653360,-480.0,0.00020712,2]
[382200459,1756542653370,-480.0,0.00020712,2]
[382200460,1756542653379,-507.3,0.00020712,2]
[382200461,1756542653388,-481.76756872,0.00020712,2]
[382200462,1756542653398,-480.0,0.00020712,2]
[382200463,1756542653407,-480.0,0.00020712,2]
[382200464,1756542653416,-480.0,0.00020712,2]
[382200465,1756542653425,-523.49,0.00020712,2]
[382200466,1756542653435,-480.0,0.00020712,2]
[382200467,1756542653444,-482.5,0.00020712,2]
[382200468,1756542653453,-879.98,0.00020712,2]
[382200469,1756542653463,-1269.26,0.00020712,2]
[382200470,1756542653472,-546.79,0.00020712,2]
[382200471,1756542653481,-1605.94,0.00020712,2]
[382200472,1756542653490,-480.0,0.00020712,2]
[382200473,1756542653500,-480.0,0.00020712,2]
[382200474,1756542653509,-480.0,0.00020712,2]
[382200475,1756542653519,-480.0,0.00020712,2]
[382200476,1756542653528,-480.0,0.00020712,2]
[382200477,1756542653539,-480.0,0.00020712,2]
[382200478,1756542653548,-480.0,0.00020712,2]
[382200479,1756542653558,-480.79572017,0.00020712,2]
[382200480,1756542653568,-480.0,0.00020712,2]
[382200481,1756542653577,-480.0,0.00020712,2]
[382200482,1756542653586,-693.15,0.00020712,2]
[382200483,1756542653596,-1085.36,0.00020712,2]
[382200484,1756542653606,-480.0,0.00020712,2]
[382200485,1756542653615,-480.0,0.00020712,2]
[382200486,1756542653625,-1164.61,0.00020712,2]
[382200487,1756542653634,-527.88,0.00020712,2]
[382200488,1756542653644,-480.0,0.00020712,2]
[382200489,1756542653654,-151.0,0.00020712,2]
[382200490,1756542653664,-480.0,0.00020712,2]
[382200491,1756542653674,-480.0,0.00020712,2]
[382200492,1756542653684,-480.0,0.00020712,2]
[382200493,1756542653694,-480.0,0.00020712,2]
[382200494,1756542653704,-480.0,0.00020712,2]
[382200495,1756542653714,-480.0,0.00020712,2]
[382200496,1756542653724,-480.0,0.00020712,2]
[382200497,1756542653734,-480.0,0.00020712,2]
[382200498,1756542653745,-480.0,0.00020712,2]
[382200499,1756542653754,-480.0,0.00020712,2]
[382200500,1756542653765,-591.67,0.00020712,2]
[382200501,1756542653775,-480.0,0.00020712,2]
[382200502,1756542653784,-480.0,0.00020712,2]
[382200503,1756542653794,-495.49,0.00020712,2]
[382200504,1756542653804,-480.0,0.00020712,2]
[382200505,1756542653814,-480.0,0.00020712,2]
[382200506,1756542653823,-480.0,0.00020712,2]
[382200507,1756542653833,-480.0,0.00020712,2]
[382200508,1756542653843,-480.0,0.00020712,2]
[382200509,1756542653853,-480.0,0.00020712,2]
[382200510,1756542653863,-480.0,0.00020712,2]
[382200511,1756542653872,-151.0,0.00020712,2]
[382200512,1756542653882,-567.35,0.00020712,2]
[382200513,1756542653891,-620.67,0.00020712,2]
[382200514,1756542653901,-520.13,0.00020712,2]
[382200515,1756542653911,-480.0,0.00020712,2]
[382200516,1756542653920,-151.0,0.00020713,2]
[382200517,1756542653929,-500.0,0.00020713,2]
[382200518,1756542653939,-151.0,0.00020713,2]
[382200519,1756542653948,-154.06718767,0.00020713,2]
[382200520,1756542653957,-151.0,0.00020713,2]
[382200521,1756542653967,-152.22796554,0.00020713,2]
[382200522,1756542653976,-157.30439683,0.00020713,2]
[382200523,1756542653986,-152.13807225,0.00020713,2]
[382200524,1756542653995,-151.0,0.00020713,2]
[382200525,1756542654010,-151.0,0.00020713,2]
[382200526,1756542654022,-152.02166784,0.00020713,2]
[382200527,1756542654032,-151.0,0.00020713,2]
[382200528,1756542654041,-151.48684361,0.00020713,2]
[382200529,1756542654054,-241.85192776,0.00020713,2]
[382200530,1756542654063,-151.37198271,0.00020713,2]
[382200531,1756542654073,-151.77123579,0.00020713,2]
[382200532,1756542654083,-154.25006985,0.00020713,2]
[382200533,1756542654093,-2715.12328229,0.00020733,2]
[382200534,1756542654103,-347.76079711,0.00020773,2]
[382200535,1756542654113,-2815.58284374,0.00020788,2]
[382200536,1756542654122,-480.0,0.00020799,2]
[382200537,1756542654131,-480.0,0.00020799,2]
[382200538,1756542654141,-480.0,0.00020799,2]
[382200539,1756542654150,-480.0,0.00020799,2]
[382200540,1756542654159,-456.51219218,0.00020799,2]
[382200541,1756542654169,-1084.36,0.00020799,2]
[382200542,1756542654179,-480.0,0.00020799,2]
[382200543,1756542654188,-1076.84,0.00020799,2]
[382200544,1756542654198,-480.0,0.00020799,2]
[382200545,1756542654207,-480.0,0.00020799,2]
[382200546,1756542654216,-480.0,0.00020799,2]
[382200547,1756542654225,-1242.87,0.00020799,2]
[382200548,1756542654235,-608.32,0.00020799,2]
[382200549,1756542654401,-480.0,0.00020799,2]
[382200550,1756542654411,-151.0,0.000208,3]
[382200551,1756542654421,-151.0,0.000208,4]
[382200552,1756542654432,-151.0,0.000208,4]
[382200553,1756542654441,-151.0,0.000208,4]
[382200554,1756542654452,-151.0,0.000208,4]
[382200555,1756542654462,-480.0,0.000208,2]
[382200556,1756542654472,-480.0,0.000208,2]
[382200557,1756542654482,-2759.47,0.000208,2]
[382200558,1756542654492,-514.96,0.000208,2]
[382200559,1756542654502,-480.0,0.000208,2]
[382200560,1756542654511,-267.99264651,0.000208,2]
[382200561,1756542654522,-1219.36,0.000208,2]
[382200562,1756542654532,-1137.66,0.000208,2]
[382200563,1756542654542,-875.53,0.000208,2]
[382200564,1756542654552,-480.0,0.000208,2]
[382200565,1756542654562,-1376.28,0.000208,2]
[382200566,1756542654571,-480.0,0.000208,2]
[382200567,1756542654582,-943.91,0.000208,2]
[382200568,1756542654591,-1251.34,0.000208,2]
[382200569,1756542654602,-480.0,0.000208,2]
[382200570,1756542654611,-480.0,0.000208,2]
[382200571,1756542654622,-480.0,0.000208,2]
[382200572,1756542654631,-4336.85,0.000208,2]
[382200573,1756542654641,-1040.11,0.000208,2]
[382200574,1756542654651,-920.55,0.000208,2]
[382200575,1756542654660,-480.0,0.000208,2]
[382200576,1756542654670,-480.0,0.000208,2]
[382200577,1756542654679,-480.0,0.000208,2]
[382200578,1756542654689,-1687.37,0.000208,2]
[382200579,1756542654699,-984.97,0.000208,2]
[382200580,1756542654708,-3294.94,0.000208,2]
[382200581,1756542654719,-1932.02,0.000208,2]
[382200582,1756542654729,-1128.53,0.000208,2]
[382200583,1756542654739,-2334.72,0.000208,2]
[382200584,1756542654749,-2040.22,0.000208,2]
[382200585,1756542654759,-1407.29,0.000208,2]
[382200586,1756542654769,-480.0,0.000208,2]
[382200587,1756542654779,-1015.93,0.000208,2]
[382200588,1756542654789,-480.0,0.000208,2]
[382200589,1756542654799,-690.35,0.00020801,2]
[382200590,1756542654809,-480.0,0.00020801,2]
[382200591,1756542654819,-480.0,0.00020801,2]
[382200592,1756542654828,-1069.58,0.00020801,2]
[382200593,1756542654839,-1314.93,0.00020801,2]
[382200594,1756542654849,-1131.52,0.00020801,2]
[382200595,1756542654859,-480.0,0.00020801,2]
[382200596,1756542654869,-1021.53,0.00020801,2]
[382200597,1756542654879,-480.0,0.00020801,2]
[382200598,1756542654889,-480.0,0.00020801,2]
[382200599,1756542654899,-208.85907381,0.00020801,2]
[382200600,1756542654910,-480.0,0.00020801,2]
[382200601,1756542654920,-488.3,0.00020801,2]
[382200602,1756542654930,-482.54,0.00020801,2]
[382200603,1756542654940,-500.0,0.00020801,2]
[382200604,1756542654952,-677.89,0.00020801,2]
[382200605,1756542654962,-480.0,0.00020801,2]
[382200606,1756542654972,-1139.25,0.00020801,2]
[382200607,1756542654982,-1153.21,0.00020801,2]
[382200608,1756542654992,-742.38,0.00020801,2]
[382200609,1756542655004,-1223.42,0.00020801,2]
[382200610,1756542655014,-480.0,0.00020801,2]
[382200611,1756542655024,-480.0,0.00020801,2]
[382200612,1756542655034,-1360.22,0.00020801,2]
[382200613,1756542655045,-480.0,0.00020801,2]
[382200614,1756542655055,-480.0,0.00020801,2]
[382200615,1756542655064,-499.96,0.00020801,2]
[382200616,1756542655074,-480.0,0.00020801,2]
[382200617,1756542655083,-480.0,0.00020801,2]
[382200618,1756542655094,-480.0,0.00020801,2]
[382200619,1756542655103,-1011.57,0.00020801,2]
[382200620,1756542655112,-1218.71,0.00020801,2]
[382200621,1756542655123,-1599.63,0.00020801,2]
[382200622,1756542655133,-480.0,0.00020801,2]
[382200623,1756542655142,-480.0,0.00020801,2]
[382200624,1756542655152,-1469.19,0.00020801,2]
[382200625,1756542655162,-1521.68,0.00020801,2]
[382200626,1756542655172,-1716.71,0.00020801,2]
[382200627,1756542655182,-1016.15,0.00020801,2]
[382200628,1756542655191,-339.2082799,0.00020801,2]
[382200629,1756542655202,-480.0,0.00020801,2]
[382200630,1756542655214,-480.0,0.00020801,2]
[382200631,1756542655225,-748.66,0.00020801,2]
[382200632,1756542655235,-1226.1,0.00020801,2]
[382200633,1756542655244,-480.0,0.00020801,2]
[382200634,1756542655254,-480.0,0.00020801,2]
[382200635,1756542655263,-283.0105379,0.00020801,2]
[382200636,1756542655273,-480.0,0.00020801,2]
[382200637,1756542655282,-1436.71,0.00020801,2]
[382200638,1756542655291,-1013.39,0.00020801,2]
[382200639,1756542655301,-480.0,0.00020801,2]
[382200640,1756542655310,-480.0,0.00020801,2]
[382200641,1756542655319,-614.73,0.00020801,2]
[382200642,1756542655329,-616.3,0.00020801,2]
[382200643,1756542655339,-547.0,0.00020801,2]
[382200644,1756542655348,-1293.93,0.00020801,2]
[382200645,1756542655358,-480.0,0.00020801,2]
[382200646,1756542655367,-529.08,0.00020801,2]
[382200647,1756542655376,-1203.74,0.00020801,2]
[382200648,1756542655386,-480.0,0.00020801,2]
[382200649,1756542655395,-1257.55,0.00020801,2]
[382200650,1756542655404,-1175.87,0.00020801,2]
[382200651,1756542655414,-480.0,0.00020801,2]
[382200652,1756542655424,-454.35061125,0.00020801,2]
[382200653,1756542655434,-538.4,0.00020801,2]
[382200654,1756542655443,-480.0,0.00020801,2]
[382200655,1756542655453,-420.0,0.00020801,2]
[382200656,1756542655463,-1087.09,0.00020801,2]
[382200657,1756542655472,-480.0,0.00020801,2]
[382200658,1756542655484,-151.0,0.00020801,2]
[382200659,1756542655494,-480.0,0.00020801,2]
[382200660,1756542655503,-688.9,0.00020801,2]
[382200661,1756542655513,-1043.27,0.00020801,2]
[382200662,1756542655523,-614.4,0.00020801,2]
[382200663,1756542655532,-480.0,0.00020801,2]
[382200664,1756542655542,-480.0,0.00020801,2]
[382200665,1756542655552,-1160.69,0.00020801,2]
[382200666,1756542655561,-584.83,0.00020801,2]
[382200667,1756542655571,-480.0,0.00020801,2]
[382200668,1756542655581,-1359.82,0.00020801,2]
[382200669,1756542655591,-563.82,0.00020802,2]
[382200670,1756542655600,-480.0,0.00020803,2]
[382200671,1756542655610,-1480.94,0.00020803,2]
[382200672,1756542655620,-480.0,0.00020803,2]
[382200673,1756542655630,-480.0,0.00020803,2]
[382200674,1756542655639,-480.0,0.00020803,2]
[382200675,1756542655648,-480.0,0.00020803,2]
[382200676,1756542655658,-480.0,0.00020803,2]
[382200677,1756542655668,-480.0,0.00020803,2]
[382200678,1756542655678,-480.0,0.00020803,2]
[382200679,1756542655687,-480.0,0.00020803,2]
[382200680,1756542655696,-480.0,0.00020803,2]
[382200681,1756542655706,-577.49,0.00020803,2]
[382200682,1756542655716,-480.0,0.00020803,2]
[382200683,1756542655725,-480.0,0.00020803,2]
[382200684,1756542655735,-480.0,0.00020803,2]
[382200685,1756542655745,-659.64,0.00020803,2]
[382200686,1756542655755,-480.0,0.00020803,2]
[382200687,1756542655764,-480.0,0.00020803,2]
[382200688,1756542655774,-480.0,0.00020803,2]
[382200689,1756542655784,-480.0,0.00020803,2]
[382200690,1756542655794,-480.0,0.00020803,2]
[382200691,1756542655804,-480.0,0.00020803,2]
[382200692,1756542655813,-913.39,0.00020803,2]
[382200693,1756542655823,-480.0,0.00020803,2]
[382200694,1756542655833,-850.29,0.00020803,2]
[382200695,1756542655843,-480.0,0.00020803,2]
[382200696,1756542656060,-480.0,0.00020803,2]
[382200697,1756542656070,-480.0,0.00020803,2]
[382200698,1756542656079,-288.83799944,0.00020803,2]
[382200699,1756542656091,-480.0,0.00020803,2]
[382200700,1756542656100,-480.0,0.00020803,2]
[382200701,1756542656110,-540.05,0.00020803,2]
[382200702,1756542656119,-671.31,0.00020803,2]
[382200703,1756542656128,-480.0,0.00020803,2]
[382200704,1756542656138,-480.0,0.00020803,2]
[382200705,1756542656147,-233.35357087,0.00020803,2]
[382200706,1756542656156,-480.0,0.00020803,2]
[382200707,1756542656166,-1099.53,0.00020803,2]
[382200708,1756542656176,-1073.71,0.00020803,2]
[382200709,1756542656187,-480.0,0.00020803,2]
[382200710,1756542656196,-480.0,0.00020803,2]
[382200711,1756542656205,-480.0,0.00020803,2]
[382200712,1756542656214,-480.0,0.00020803,2]
[382200713,1756542656224,-233.098656,0.00020803,2]
[382200714,1756542656233,-233.098656,0.00020803,2]
[382200715,1756542656243,-233.098656,0.00020803,2]
[382200716,1756542656252,-233.098656,0.00020803,2]
[382200717,1756542656262,-480.0,0.00020803,2]
[382200718,1756542656271,-480.0,0.00020803,2]
[382200719,1756542656280,-480.0,0.00020803,2]
[382200720,1756542656290,-480.0,0.00020803,2]
[382200721,1756542656299,-480.0,0.00020803,2]
[382200722,1756542656309,-480.0,0.00020803,2]
[382200723,1756542656318,-480.0,0.00020803,2]
[382200724,1756542656328,-480.0,0.00020803,2]
[382200725,1756542656339,-480.0,0.00020803,2]
[382200726,1756542656348,-480.0,0.00020803,2]
[382200727,1756542656357,-480.0,0.00020803,2]
[382200728,1756542656367,-480.0,0.00020803,2]
[382200729,1756542656376,-480.0,0.00020803,2]
[382200730,1756542656385,-480.0,0.00020803,2]
[382200731,1756542656394,-480.0,0.00020803,2]
[382200732,1756542656403,-480.0,0.00020803,2]
[382200733,1756542656412,-480.0,0.00020803,2]
[382200734,1756542656421,-151.0,0.00020803,2]
[382200735,1756542656432,-480.0,0.00020803,2]
[382200736,1756542656444,-151.0,0.00020803,2]
[382200737,1756542656455,-151.0,0.00020803,2]
[382200738,1756542656464,-480.0,0.00020803,2]
[382200739,1756542656475,-250.28666959,0.00020803,2]
[382200740,1756542656485,-480.0,0.00020803,2]
[382200741,1756542656496,-480.0,0.00020803,2]
[382200742,1756542656507,-480.0,0.00020803,2]
[382200743,1756542656517,-480.0,0.00020803,2]
[382200744,1756542656527,-469.80261877,0.00020803,2]
[382200745,1756542656537,-480.0,0.00020803,2]
[382200746,1756542656547,-480.0,0.00020803,2]
[382200747,1756542656556,-480.0,0.00020803,2]
[382200748,1756542656565,-527.01,0.00020803,2]
[382200749,1756542656576,-526.26718418,0.00020803,2]
[382200750,1756542656586,-480.0,0.00020803,2]
[382200751,1756542656596,-480.0,0.00020803,2]
[382200752,1756542656608,-328.09326813,0.00020803,2]
[382200753,1756542656618,-480.0,0.00020803,2]
[382200754,1756542656627,-480.0,0.00020803,2]
[382200755,1756542656638,-480.0,0.00020803,2]
[382200756,1756542656647,-480.0,0.00020803,2]
[382200757,1756542656657,-480.0,0.00020803,2]
[382200758,1756542656667,-480.0,0.00020803,2]
[382200759,1756542656679,-480.0,0.00020803,2]
[382200760,1756542656689,-480.0,0.00020803,2]
[382200761,1756542656699,-480.0,0.00020803,2]
[382200762,1756542656708,-480.0,0.00020803,2]
[382200763,1756542656718,-504.84,0.00020803,2]
[382200764,1756542656727,-480.0,0.00020803,2]
[382200765,1756542656737,-480.0,0.00020803,2]
[382200766,1756542656746,-480.0,0.00020803,2]
[382200767,1756542656756,-480.0,0.00020803,2]
[382200768,1756542656765,-1138.36,0.00020803,2]
[382200769,1756542656775,-1285.3,0.00020803,2]
[382200770,1756542656784,-480.0,0.00020803,2]
[382200771,1756542656795,-342.68048927,0.00020803,2]
[382200773,1756542656804,-480.0,0.00020803,2]
[382200774,1756542656813,-1003.5,0.00020803,2]
[382200775,1756542656823,-480.0,0.00020803,2]
[382200776,1756542656832,-737.26,0.00020803,2]
[382200777,1756542656843,-480.0,0.00020803,2]
[382200778,1756542656852,-480.0,0.00020803,2]
[382200779,1756542656862,-480.0,0.00020803,2]
[382200780,1756542656871,-480.0,0.00020803,2]
[382200781,1756542656880,-480.0,0.00020803,2]
[382200782,1756542656889,-1549.87,0.00020803,2]
[382200783,1756542656899,-480.0,0.00020803,2]
[382200784,1756542656908,-480.0,0.00020803,2]
[382200785,1756542656917,-480.0,0.00020803,2]
[382200786,1756542656927,-480.0,0.00020803,2]
[382200787,1756542656936,-480.0,0.00020803,2]
[382200788,1756542656945,-4368.98,0.00020803,2]
[382200789,1756542656954,-480.0,0.00020803,2]
[382200790,1756542656963,-1235.42,0.00020803,2]
[382200791,1756542656973,-595.68,0.00020803,2]
[382200792,1756542656982,-1189.91,0.00020803,2]
[382200793,1756542656991,-1186.28,0.00020803,2]
[382200794,1756542657001,-546.91,0.00020803,2]
[382200795,1756542657012,-480.0,0.00020803,2]
[382200796,1756542657022,-342.39741091,0.00020803,2]
[382200797,1756542657031,-1331.51,0.00020803,2]
[382200798,1756542657040,-480.0,0.00020803,2]
[382200799,1756542657050,-480.0,0.00020803,2]
[382200800,1756542657059,-480.0,0.00020803,2]
[382200801,1756542657069,-658.87,0.00020803,2]
[382200802,1756542657079,-480.0,0.00020803,2]
[382200803,1756542657089,-7056.03,0.00020803,2]
[382200804,1756542657098,-480.0,0.00020803,2]
[382200805,1756542657107,-1295.49,0.00020803,2]
[382200806,1756542657117,-480.0,0.00020803,2]
[382200807,1756542657126,-480.0,0.00020803,2]
[382200808,1756542657136,-480.0,0.00020803,2]
[382200809,1756542657145,-5171.5,0.00020803,2]
[382200810,1756542657155,-480.0,0.00020803,2]
[382200811,1756542657164,-481.10875383,0.00020803,2]
[382200812,1756542657174,-446.25156577,0.00020803,2]
[382200813,1756542657183,-1673.16,0.00020803,2]
[382200814,1756542657191,-553.51403797,0.00020803,2]
[382200815,1756542657202,-3048.63,0.00020803,2]
[382200816,1756542657211,-1937.25,0.00020803,2]
[382200817,1756542657220,-480.0,0.00020803,2]
[382200818,1756542657230,-480.0,0.00020803,2]
[382200819,1756542657239,-480.0,0.00020803,2]
[382200820,1756542657248,-480.0,0.00020803,2]
[382200821,1756542657395,-553.95,0.00020803,2]
[382200822,1756542657407,-311.52588648,0.00020803,2]
[382200823,1756542657416,-480.0,0.00020803,2]
[382200824,1756542657426,-490.47045708,0.00020803,2]
[382200825,1756542657435,-1393.98,0.00020803,2]
[382200826,1756542657444,-480.0,0.00020803,2]
[382200827,1756542657454,-480.0,0.00020803,2]
[382200828,1756542657463,-1263.3,0.00020803,2]
[382200829,1756542657472,-1465.94,0.00020803,2]
[382200831,1756542657481,-250.17293144,0.00020803,2]
[382200832,1756542657491,-6463.64,0.00020803,2]
[382200833,1756542657500,-480.0,0.00020803,2]
[382200834,1756542657510,-480.0,0.00020803,2]
[382200835,1756542657519,-481.28767481,0.00020803,2]
[382200836,1756542657528,-480.0,0.00020803,2]
[382200837,1756542657538,-1549.72,0.00020803,2]
[382200838,1756542657547,-480.0,0.00020803,2]
[382200839,1756542657556,-1404.39,0.00020803,2]
[382200840,1756542657565,-480.0,0.00020803,2]
[382200841,1756542657575,-480.0,0.00020803,2]
[382200842,1756542657584,-6066.55,0.00020803,2]
[382200843,1756542657593,-950.03,0.00020803,2]
[382200844,1756542657603,-480.0,0.00020803,2]
[382200845,1756542657612,-480.0,0.00020803,2]
[382200846,1756542657622,-278.54133583,0.00020803,2]
[382200847,1756542657632,-2540.51,0.00020803,2]
[382200848,1756542657642,-480.0,0.00020803,2]
[382200849,1756542657652,-480.0,0.00020803,2]
[382200850,1756542657661,-480.0,0.00020803,2]
[382200851,1756542657671,-480.0,0.00020803,2]
[382200852,1756542657680,-1110.98,0.00020803,2]
[382200853,1756542657690,-505.53,0.00020804,2]
[382200854,1756542657699,-1286.87,0.00020804,2]
[382200855,1756542657708,-602.69,0.00020804,2]
[382200856,1756542657717,-480.0,0.00020804,2]
[382200857,1756542657727,-967.19,0.00020804,2]
[382200858,1756542657736,-513.28,0.00020804,2]
[382200859,1756542657746,-580.63,0.00020804,2]
[382200860,1756542657755,-480.0,0.00020804,2]
[382200861,1756542657764,-1746.88,0.00020804,2]
[382200862,1756542657774,-480.0,0.00020804,2]
[382200863,1756542657783,-480.0,0.00020804,2]
[382200864,1756542657792,-864.76,0.00020804,2]
[382200865,1756542657801,-480.0,0.00020804,2]
[382200866,1756542657811,-716.51179742,0.00020804,2]
[382200867,1756542658235,-480.0,0.00020255,2]
[382200868,1756542658245,-1000.0,0.00020426,2]
[382200869,1756542658254,-500.0,0.00020426,2]
[382200870,1756542658263,-1000.0,0.00020426,2]
[382200871,1756542658271,-390.61850996,0.00020426,2]
[382200872,1756542658281,-1000.0,0.00020426,2]
[382200873,1756542658291,-522.20820258,0.00020804,2]
[382200874,1756542658300,-480.0,0.00020804,2]
[382200875,1756542658309,-495.4,0.00020804,2]
[382200876,1756542658319,-486.22,0.00020804,2]
[382200877,1756542658328,-792.68,0.00020804,2]
[382200878,1756542658337,-1305.4,0.00020804,2]
[382200879,1756542658346,-480.0,0.00020804,2]
[382200880,1756542658356,-613.47,0.00020804,2]
[382200881,1756542658365,-663.3,0.00020804,2]
[382200882,1756542658374,-1324.19,0.00020804,2]
[382200883,1756542658383,-1267.73,0.00020804,2]
[382200884,1756542658393,-1945.4,0.00020804,2]
[382200885,1756542658402,-1409.59,0.00020804,2]
[382200886,1756542658411,-480.0,0.00020804,2]